fUSD/lending_fUSD_20251027
["ID","MTS","AMOUNT","RATE_DAILY","PERIOD"]
[392514738,1761599450242,-8446.87034486,0.0003445,2]
[392514739,1761599450252,-150.3,0.00034461,60]
[392514740,1761599450261,-500.0,0.0003454,7]
[392514741,1761599450270,-500.0,0.0003454,7]
[392514742,1761599450279,-23128.6322577,0.0003455,2]
[392514743,1761599450289,-243.5559776,0.0003455,2]
[392514744,1761599450298,-10087.2745103,0.0003455,2]
[392514745,1761599450307,-10930.2862368,0.0003455,2]
[392514746,1761599450316,-196.1161529,0.0003455,2]
[392514747,1761599450325,-1749.9711194,0.0003455,2]
[392514748,1761599450336,-2771.8298404,0.0003455,2]
[392514749,1761599450346,-150.3,0.00034561,60]
[392514750,1761599450355,-1280.96929462,0.00034628,2]
[392514751,1761599450365,-600.0,0.00034649,7]
[392514752,1761599450374,-8396.25,0.00034649,2]
[392514753,1761599450383,-150.99,0.00034649,2]
[392514754,1761599450392,-150.3,0.00034661,60]
[392514755,1761599450401,-8446.87034481,0.00034734,2]
[392514756,1761599450411,-150.3,0.00034761,60]
[392514757,1761599450420,-150.0,0.00034779,7]
[392514758,1761599450430,-153.42375599,0.00034795,30]
[392514759,1761599450441,-150.3,0.00034861,60]
[392514760,1761599450451,-162.76443,0.0003487,2]
[392514761,1761599450460,-700.0,0.00034878,7]
[392514762,1761599450469,-162.76443,0.0003491,2]
[392514763,1761599450479,-150.3,0.00034961,60]
[392514764,1761599450488,-8446.87034481,0.00035018,2]
[392514765,1761599450497,-600.0,0.00035049,7]
[392514766,1761599450507,-150.3,0.00035061,60]
[392514767,1761599450517,-600.0,0.00035063,2]
[392514768,1761599450527,-600.0,0.00035106,7]
[392514769,1761599450537,-600.0,0.00035145,2]
[392514770,1761599450547,-162.76443,0.0003516,2]
[392514771,1761599450557,-150.3,0.00035161,60]
[392514772,1761599450567,-603.0,0.0003521,7]
[392514773,1761599450576,-600.0,0.00035212,7]
[392514774,1761599450586,-3013.6220847,0.00035225,2]
[392514775,1761599450596,-284.22275882,0.00035225,2]
[392514776,1761599450606,-150.3,0.00035261,60]
[392514777,1761599450622,-500.0,0.00035264,7]
[392514778,1761599450636,-500.0,0.00035264,7]
[392514779,1761599450646,-153.98124979,0.00035264,20]
[392514780,1761599450656,-152.0,0.00035292,3]
[392514781,1761599450667,-8446.87034481,0.00035302,2]
[392514782,1761599450678,-600.0,0.00035308,2]
[392514783,1761599450689,-150.3,0.00035361,60]
[392514784,1761599450698,-2073.9338,0.00035396,2]
[392514785,1761599450708,-9204.15908845,0.00035406,2]
[392514786,1761599450720,-671.95735875,0.00035406,2]
[392514787,1761599450730,-200.0,0.00035413,10]
[392514788,1761599450740,-150.3,0.00035461,60]
[392514789,1761599450750,-500.0,0.00035495,2]
[392514790,1761599450760,-46445.2952026,0.00035496,3]
[392514791,1761599450769,-159.29,0.00035496,2]
[392514792,1761599450779,-500.0,0.000355,12]
[392514793,1761599450790,-1001.8282,0.00035505,2]
[392514794,1761599450804,-193087.8941,0.00035506,2]
[392514795,1761599450813,-1000.0,0.00035506,2]
[392514796,1761599450823,-683.3636118,0.00035506,2]
[392514797,1761599450832,-600.0,0.00035507,2]
[392514798,1761599450842,-15481.7650675,0.00035511,3]
[392514799,1761599450851,-5000.0,0.00035516,2]
[392514800,1761599450860,-2000.0,0.00035522,3]
[392514801,1761599450870,-150.3,0.00035561,60]
[392514802,1761599450879,-9204.15908839,0.00035584,2]
[392514803,1761599450888,-8446.87034481,0.00035586,2]
[392514804,1761599450898,-159.29,0.00035586,2]
[392514805,1761599450908,-600.0,0.00035588,2]
[392514806,1761599450917,-16969.7709533,0.00035595,3]
[392514807,1761599450927,-108372.355473,0.00035596,3]
[392514808,1761599450936,-84848.8547667,0.00035596,3]
[392514809,1761599450946,-151.0,0.00035596,31]
[392514810,1761599450955,-151.0,0.00035596,31]
[392514811,1761599450966,-151.0,0.00035596,31]
[392514812,1761599450975,-151.0,0.00035596,31]
[392514813,1761599450985,-151.0,0.00035596,31]
[392514814,1761599450997,-154.208532,0.00035596,31]
[392514815,1761599451006,-576.89336319,0.000356,2]
[392514816,1761599451015,-1100.0,0.000356,12]
[392514817,1761599451025,-1020.0,0.00035605,5]
[392514818,1761599451035,-500.0,0.00035605,7]
[392514819,1761599451045,-500.0,0.00035605,7]
[392514820,1761599451054,-500.0,0.00035605,2]
[392514821,1761599451063,-500.0,0.00035605,2]
[392514822,1761599451072,-500.0,0.00035605,2]
[392514823,1761599451082,-1068.77454671,0.00035605,2]
[392514824,1761599451092,-185781.18081,0.00035606,3]
[392514825,1761599451101,-288486.106207,0.00035606,3]
[392514826,1761599451112,-174.93,0.00035606,2]
[392514827,1761599451121,-174.93,0.00035606,2]
[392514828,1761599451133,-174.93,0.00035606,2]
[392514829,1761599451144,-151.0,0.00035606,31]
[392514830,1761599451154,-151.0,0.00035606,31]
[392514831,1761599451165,-151.0,0.00035606,31]
[392514832,1761599451176,-151.0,0.00035606,31]
[392514833,1761599451186,-151.0,0.00035606,31]
[392514834,1761599451197,-151.0,0.00035606,31]
[392514835,1761599451208,-151.0,0.00035606,31]
[392514836,1761599451218,-151.0,0.00035606,31]
[392514837,1761599451230,-783.0,0.00035609,2]
[392514838,1761599451241,-558.0,0.00035609,3]
[392514839,1761599451251,-500.0,0.00035615,7]
[392514840,1761599451261,-500.0,0.00035615,7]
[392514841,1761599451271,-500.0,0.00035615,7]
[392514842,1761599451282,-623.74232768,0.00035615,7]
[392514843,1761599451291,-500.0,0.00035615,2]
[392514844,1761599451301,-500.0,0.00035615,2]
[392514845,1761599451310,-500.0,0.00035616,7]
[392514846,1761599451319,-500.0,0.00035616,7]
[392514847,1761599451329,-500.0,0.00035616,7]
[392514848,1761599451339,-500.0,0.00035616,7]
[392514849,1761599451348,-500.0,0.00035616,7]
[392514850,1761599451359,-500.0,0.00035616,7]
[392514851,1761599451368,-503.58314282,0.00035616,7]
[392514852,1761599451377,-500.0,0.00035616,7]
[392514853,1761599451387,-500.0,0.00035616,7]
[392514854,1761599451396,-501.55516335,0.00035616,7]
[392514855,1761599451405,-506.97959715,0.00035616,7]
[392514856,1761599451415,-155.639685,0.00035616,7]
[392514857,1761599451424,-500.0,0.00035616,7]
[392514858,1761599451434,-500.0,0.00035616,7]
[392514859,1761599451443,-503.64020746,0.00035616,7]
[392514860,1761599451453,-507.13041404,0.00035616,7]
[392514861,1761599451463,-500.0,0.00035616,7]
[392514862,1761599451472,-500.0,0.00035616,2]
[392514863,1761599451481,-472.63071839,0.00035616,7]
[392514864,1761599451490,-5308.862808,0.00035616,7]
[392514865,1761599451500,-510.400191,0.00035616,7]
[392514866,1761599451509,-500.0,0.00035616,7]
[392514867,1761599451518,-204.248877,0.00035616,7]
[392514868,1761599451528,-13698.579894,0.00035616,7]
[392514869,1761599451537,-496.966155,0.00035616,7]
[392514870,1761599451547,-496.966155,0.00035616,7]
[392514871,1761599451556,-502.7814775,0.00035616,7]
[392514872,1761599451565,-912.93499,0.00035616,7]
[392514873,1761599451575,-500.0,0.00035616,7]
[392514874,1761599451584,-500.0,0.00035616,7]
[392514875,1761599451593,-500.0,0.00035616,7]
[392514876,1761599451602,-505.57438394,0.00035616,7]
[392514877,1761599451611,-1000.0,0.00035616,120]
[392514878,1761599451620,-503.74037185,0.00035616,7]
[392514879,1761599451630,-506.11515514,0.00035616,7]
[392514880,1761599451639,-500.0,0.00035616,7]
[392514881,1761599451649,-500.0,0.00035616,2]
[392514882,1761599451659,-503.53721075,0.00035616,7]
[392514883,1761599451668,-500.0,0.00035616,7]
[392514884,1761599451678,-500.0,0.00035616,7]
[392514885,1761599451687,-505.90974919,0.00035616,7]
[392514886,1761599451697,-500.0,0.00035616,7]
[392514887,1761599451707,-500.0,0.00035616,7]
[392514888,1761599451716,-594.3204063,0.00035616,7]
[392514889,1761599451725,-500.0,0.00035616,7]
[392514890,1761599451734,-500.0,0.00035616,7]
[392514891,1761599451743,-500.0,0.00035616,7]
[392514892,1761599451752,-500.0,0.00035616,7]
[392514893,1761599451761,-333.36737658,0.00035616,7]
[392514894,1761599451771,-500.0,0.00035616,7]
[392514895,1761599451780,-512.2361463,0.00035616,7]
[392514896,1761599451789,-500.0,0.00035616,7]
[392514897,1761599451799,-230.53929417,0.00035616,7]
[392514898,1761599451809,-500.0,0.00035616,7]
[392514899,1761599451819,-500.0,0.00035616,7]
[392514900,1761599451828,-1536.05,0.00035616,7]
[392514901,1761599451838,-500.0,0.00035616,7]
[392514902,1761599451847,-500.0,0.00035616,7]
[392514903,1761599451857,-500.0,0.00035616,7]
[392514904,1761599451866,-508.47578793,0.00035616,7]
[392514905,1761599451875,-500.0,0.00035616,7]
[392514906,1761599451884,-539.43453665,0.00035616,7]
[392514907,1761599451894,-500.0,0.00035616,7]
[392514908,1761599451903,-507.83247295,0.00035616,7]
[392514909,1761599451912,-500.0,0.00035616,7]
[392514910,1761599451921,-500.0,0.00035616,7]
[392514911,1761599451930,-546.3180132,0.00035616,7]
[392514912,1761599451939,-550.58993345,0.00035616,7]
[392514913,1761599451948,-500.0,0.00035616,7]
[392514914,1761599451957,-500.0,0.00035616,7]
[392514915,1761599451966,-516.48324829,0.00035616,7]
[392514916,1761599451975,-500.0,0.00035616,7]
[392514917,1761599451984,-506.47086742,0.00035616,7]
[392514918,1761599451993,-508.82740248,0.00035616,7]
[392514919,1761599452002,-500.0,0.00035616,7]
[392514920,1761599452011,-196.73564212,0.00035616,7]
[392514921,1761599452020,-500.0,0.00035616,7]
[392514922,1761599452029,-517.76237009,0.00035616,7]
[392514923,1761599452038,-571.94067027,0.00035616,7]
[392514924,1761599452047,-500.0,0.00035616,2]
[392514925,1761599452056,-500.0,0.00035616,7]
[392514926,1761599452065,-596.6857531,0.00035616,7]
[392514927,1761599452073,-500.0,0.00035616,7]
[392514928,1761599452082,-500.0,0.00035616,2]
[392514929,1761599452092,-500.0,0.00035616,7]
[392514930,1761599452101,-604.56,0.00035616,7]
[392514931,1761599452111,-500.0,0.00035616,7]
[392514932,1761599452121,-500.0,0.00035616,7]
[392514933,1761599452131,-515.61223439,0.00035616,7]
[392514934,1761599452140,-506.92364006,0.00035616,7]
[392514935,1761599452149,-534.96033804,0.00035616,7]
[392514936,1761599452159,-500.0,0.00035616,7]
[392514937,1761599452168,-500.0,0.00035616,7]
[392514938,1761599452178,-500.0,0.00035616,7]
[392514939,1761599452187,-500.0,0.00035616,7]
[392514940,1761599452197,-500.0,0.00035616,2]
[392514941,1761599452206,-508.53637471,0.00035616,7]
[392514942,1761599452215,-500.0,0.00035616,7]
[392514943,1761599452224,-504.70698002,0.00035616,7]
[392514944,1761599452233,-500.0,0.00035616,7]
[392514945,1761599452242,-500.0,0.00035616,7]
[392514946,1761599452251,-500.0,0.00035616,7]
[392514947,1761599452260,-500.0,0.00035616,7]
[392514948,1761599452269,-500.0,0.00035616,7]
[392514949,1761599452279,-516.72478523,0.00035616,7]
[392514950,1761599452288,-224.56727086,0.00035616,7]
[392514951,1761599452297,-518.68566928,0.00035616,7]
[392514952,1761599452306,-500.0,0.00035616,7]
[392514953,1761599452315,-500.0,0.00035616,7]
[392514954,1761599452325,-500.0,0.00035616,7]
[392514955,1761599452334,-500.0,0.00035616,7]
[392514956,1761599452501,-500.0,0.00035616,7]
[392514957,1761599452512,-505.84838099,0.00035616,7]
[392514958,1761599452522,-500.0,0.00035616,7]
[392514959,1761599452531,-500.0,0.00035616,7]
[392514960,1761599452540,-500.0,0.00035616,7]
[392514961,1761599452550,-513.67736664,0.00035616,7]
[392514962,1761599452559,-500.0,0.00035616,7]
[392514963,1761599452569,-300.0,0.00035616,7]
[392514964,1761599452579,-500.0,0.00035616,7]
[392514965,1761599452588,-596.4,0.00035616,7]
[392514966,1761599452598,-500.0,0.00035616,7]
[392514967,1761599452607,-500.0,0.00035616,7]
[392514968,1761599452616,-500.0,0.00035616,7]
[392514969,1761599452626,-500.0,0.00035616,7]
[392514970,1761599452635,-370.23665253,0.00035616,7]
[392514971,1761599452644,-500.0,0.00035616,7]
[392514972,1761599452654,-500.0,0.00035616,7]
[392514973,1761599452663,-500.0,0.00035616,7]
[392514974,1761599452672,-500.0,0.00035616,7]
[392514975,1761599452681,-600.0,0.00035616,120]
[392514976,1761599452690,-510.08447044,0.00035616,7]
[392514977,1761599452699,-500.0,0.00035616,7]
[392514978,1761599452709,-423.61492135,0.00035616,7]
[392514979,1761599452718,-520.00759616,0.00035616,7]
[392514980,1761599452727,-506.56201271,0.00035616,7]
[392514981,1761599452736,-500.0,0.00035616,7]
[392514982,1761599452745,-641.43262252,0.00035616,7]
[392514983,1761599452755,-281.52440486,0.00035616,7]
[392514984,1761599452764,-500.0,0.00035616,7]
[392514985,1761599452773,-516.25258082,0.00035616,7]
[392514986,1761599452782,-196.70611567,0.00035616,7]
[392514987,1761599452791,-176.87757748,0.00035616,7]
[392514988,1761599452802,-500.0,0.00035616,7]
[392514989,1761599452811,-500.0,0.00035616,7]
[392514990,1761599452822,-500.0,0.00035616,7]
[392514991,1761599452832,-507.88195314,0.00035616,7]
[392514992,1761599452841,-249.44837579,0.00035616,7]
[392514993,1761599452850,-589.2,0.00035616,7]
[392514994,1761599452860,-500.0,0.00035616,7]
[392514995,1761599452869,-502.23610721,0.00035616,7]
[392514996,1761599452878,-500.0,0.00035616,7]
[392514997,1761599452888,-500.0,0.00035616,7]
[392514998,1761599452897,-500.0,0.00035616,7]
[392514999,1761599452906,-500.0,0.00035616,7]
[392515000,1761599452915,-518.48508526,0.00035616,7]
[392515001,1761599452924,-500.0,0.00035616,7]
[392515002,1761599452933,-511.52525496,0.00035616,7]
[392515003,1761599452943,-500.0,0.00035616,7]
[392515004,1761599452951,-645.93374354,0.00035616,7]
[392515005,1761599452961,-500.0,0.00035616,7]
[392515006,1761599452970,-500.0,0.00035616,7]
[392515007,1761599452979,-500.0,0.00035616,7]
[392515008,1761599452988,-513.92780217,0.00035616,7]
[392515009,1761599452998,-500.0,0.00035616,7]
[392515010,1761599453007,-500.0,0.00035616,7]
[392515011,1761599453016,-500.0,0.00035616,7]
[392515012,1761599453026,-500.0,0.00035616,7]
[392515013,1761599453035,-500.0,0.00035616,7]
[392515014,1761599453044,-500.0,0.00035616,7]
[392515015,1761599453054,-500.0,0.00035616,7]
[392515016,1761599453063,-500.0,0.00035616,7]
[392515017,1761599453073,-500.0,0.00035616,7]
[392515018,1761599453082,-1003.0,0.00035616,7]
[392515019,1761599453091,-500.0,0.00035616,7]
[392515020,1761599453100,-517.34756307,0.00035616,7]
[392515021,1761599453110,-587.46466645,0.00035616,7]
[392515022,1761599453119,-500.0,0.00035616,7]
[392515023,1761599453128,-500.0,0.00035616,7]
[392515024,1761599453138,-403.96975981,0.00035616,7]
[392515025,1761599453148,-277.3861601,0.00035616,7]
[392515026,1761599453157,-500.0,0.00035616,7]
[392515027,1761599453166,-500.0,0.00035616,7]
[392515028,1761599453175,-500.0,0.00035616,7]
[392515029,1761599453185,-514.690963,0.00035616,7]
[392515030,1761599453194,-556.33278869,0.00035616,7]
[392515031,1761599453203,-500.0,0.00035616,7]
[392515032,1761599453212,-500.0,0.00035616,7]
[392515033,1761599453221,-500.0,0.00035616,7]
[392515034,1761599453230,-500.0,0.00035616,7]
[392515035,1761599453240,-151.0,0.00035616,31]
[392515036,1761599453249,-500.0,0.00035616,7]
[392515037,1761599453258,-500.0,0.00035616,7]
[392515038,1761599453267,-500.0,0.00035616,7]
[392515039,1761599453276,-500.0,0.00035616,7]
[392515040,1761599453286,-515.94173933,0.00035616,7]
[392515041,1761599453296,-500.0,0.00035616,7]
[392515042,1761599453305,-500.0,0.00035616,7]
[392515043,1761599453314,-545.25352492,0.00035616,7]
[392515044,1761599453324,-504.56889581,0.00035616,7]
[392515045,1761599453333,-500.0,0.00035616,7]
[392515046,1761599453342,-500.0,0.00035616,7]
[392515047,1761599453352,-504.7287341,0.00035616,7]
[392515048,1761599453361,-500.0,0.00035616,7]
[392515049,1761599453371,-500.0,0.00035616,7]
[392515050,1761599453379,-500.0,0.00035616,7]
[392515051,1761599453389,-500.0,0.00035616,7]
[392515052,1761599453398,-500.0,0.00035616,7]
[392515053,1761599453408,-500.0,0.00035616,7]
[392515054,1761599453416,-500.0,0.00035616,7]
[392515055,1761599453427,-500.0,0.00035616,7]
[392515056,1761599453436,-545.34182741,0.00035616,7]
[392515057,1761599453446,-500.0,0.00035616,7]
[392515058,1761599453455,-500.0,0.00035616,7]
[392515059,1761599453465,-500.0,0.00035616,7]
[392515060,1761599453474,-303.06475501,0.00035616,7]
[392515061,1761599453483,-500.0,0.00035616,7]
[392515062,1761599453493,-508.79881806,0.00035616,7]
[392515063,1761599453502,-483.65264211,0.00035616,7]
[392515064,1761599453511,-500.0,0.00035616,7]
[392515065,1761599453520,-411.93446688,0.00035616,7]
[392515066,1761599453529,-500.0,0.00035616,7]
[392515067,1761599453539,-500.0,0.00035616,7]
[392515068,1761599453548,-500.0,0.00035616,7]
[392515069,1761599453557,-507.64829771,0.00035616,7]
[392515070,1761599453567,-500.0,0.00035616,7]
[392515071,1761599453576,-500.0,0.00035616,7]
[392515072,1761599453586,-500.0,0.00035616,7]
[392515073,1761599453595,-506.36958227,0.00035616,7]
[392515074,1761599453604,-504.71934601,0.00035616,7]
[392515075,1761599453613,-500.0,0.00035616,7]
[392515076,1761599453623,-500.0,0.00035616,7]
[392515077,1761599453632,-733.13,0.00035616,7]
[392515078,1761599453641,-500.0,0.00035616,7]
[392515079,1761599453650,-500.0,0.00035616,7]
[392515080,1761599453659,-500.0,0.00035616,7]
[392515081,1761599453669,-500.0,0.00035616,7]
[392515082,1761599453678,-500.0,0.00035616,7]
[392515083,1761599453687,-500.87204215,0.00035616,7]
[392515084,1761599453696,-500.0,0.00035616,7]
[392515085,1761599453705,-500.0,0.00035616,7]
[392515086,1761599453715,-513.65659878,0.00035616,7]
[392515087,1761599453724,-329.62545139,0.00035616,7]
[392515088,1761599453734,-500.0,0.00035616,7]
[392515089,1761599453743,-535.76459255,0.00035616,7]
[392515090,1761599453753,-534.86000924,0.00035616,7]
[392515091,1761599453762,-500.0,0.00035616,7]
[392515092,1761599453771,-1389.46,0.00035616,7]
[392515093,1761599453781,-594.97984889,0.00035616,7]
[392515094,1761599453790,-509.02712559,0.00035616,7]
[392515095,1761599453803,-500.0,0.00035616,7]
[392515096,1761599453812,-500.0,0.00035616,7]
[392515097,1761599453821,-584.42716479,0.00035616,7]
[392515098,1761599453831,-500.0,0.00035616,7]
[392515099,1761599453841,-500.0,0.00035616,7]
[392515100,1761599453851,-542.2831237,0.00035616,7]
[392515101,1761599453860,-500.0,0.00035616,7]
[392515102,1761599453870,-500.0,0.00035616,7]
[392515103,1761599453879,-509.83200334,0.00035616,7]
[392515104,1761599453890,-569.67652835,0.00035616,7]
[392515105,1761599453899,-500.0,0.00035616,7]
[392515106,1761599453909,-500.0,0.00035616,7]
[392515107,1761599453918,-500.0,0.00035616,7]
[392515108,1761599453927,-500.0,0.00035616,7]
[392515109,1761599453936,-505.23852127,0.00035616,7]
[392515110,1761599453946,-500.0,0.00035616,7]
[392515111,1761599453955,-500.0,0.00035616,7]
[392515112,1761599453964,-557.55057522,0.00035616,7]
[392515113,1761599453973,-509.51923717,0.00035616,7]
[392515114,1761599453982,-500.0,0.00035616,7]
[392515115,1761599453991,-568.74639073,0.00035616,7]
[392515116,1761599454002,-500.0,0.00035616,7]
[392515117,1761599454011,-500.0,0.00035616,7]
[392515118,1761599454020,-500.0,0.00035616,7]
[392515119,1761599454029,-500.0,0.00035616,7]
[392515120,1761599454038,-500.0,0.00035616,7]
[392515121,1761599454047,-500.0,0.00035616,7]
[392515122,1761599454056,-500.0,0.00035616,7]
[392515123,1761599454065,-565.16536911,0.00035616,7]
[392515124,1761599454075,-500.0,0.00035616,7]
[392515125,1761599454084,-512.35873486,0.00035616,7]
[392515126,1761599454093,-500.0,0.00035616,7]
[392515127,1761599454102,-500.0,0.00035616,7]
[392515128,1761599454111,-500.0,0.00035616,7]
[392515129,1761599454120,-500.0,0.00035616,7]
[392515130,1761599454130,-503.26954433,0.00035616,7]
[392515131,1761599454139,-500.0,0.00035616,7]
[392515132,1761599454148,-500.0,0.00035616,7]
[392515133,1761599454157,-500.0,0.00035616,7]
[392515134,1761599454166,-500.0,0.00035616,7]
[392515135,1761599454175,-500.0,0.00035616,7]
[392515136,1761599454185,-500.0,0.00035616,7]
[392515137,1761599454194,-2081.05,0.00035616,7]
[392515138,1761599454204,-465.35419453,0.00035616,7]
[392515139,1761599454213,-500.0,0.00035616,7]
[392515140,1761599454223,-500.0,0.00035616,7]
[392515141,1761599454231,-587.69325404,0.00035616,7]
[392515142,1761599454241,-500.0,0.00035616,7]
[392515143,1761599454250,-545.8041835,0.00035616,7]
[392515144,1761599454259,-552.13,0.00035616,7]
[392515145,1761599454268,-510.21433904,0.00035616,7]
[392515146,1761599454278,-151.0,0.00035616,31]
[392515147,1761599454287,-186.696109,0.00035616,31]
[392515148,1761599454297,-500.0,0.00035616,7]
[392515149,1761599454306,-509.22061718,0.00035616,7]
[392515150,1761599454315,-500.0,0.00035616,7]
[392515151,1761599454324,-500.0,0.00035616,7]
[392515152,1761599454333,-499.99541311,0.00035616,7]
[392515153,1761599454343,-500.0,0.00035616,7]
[392515154,1761599454352,-500.0,0.00035616,7]
[392515155,1761599454361,-500.0,0.00035616,7]
[392515156,1761599454371,-500.0,0.00035616,7]
[392515157,1761599454380,-506.18970488,0.00035616,7]
[392515158,1761599454389,-506.45464497,0.00035616,7]
[392515159,1761599454398,-512.47781083,0.00035616,7]
[392515160,1761599454407,-500.0,0.00035616,7]
[392515161,1761599454416,-500.0,0.00035616,7]
[392515162,1761599454425,-500.0,0.00035616,7]
[392515163,1761599454435,-216.32604278,0.00035616,7]
[392515164,1761599454444,-500.0,0.00035616,7]
[392515165,1761599454453,-500.0,0.00035616,7]
[392515166,1761599454463,-526.99559196,0.00035616,7]
[392515167,1761599454472,-500.0,0.00035616,7]
[392515168,1761599454481,-500.0,0.00035616,7]
[392515169,1761599454490,-422.02263331,0.00035616,7]
[392515170,1761599454500,-500.0,0.00035616,7]
[392515171,1761599454509,-450.0,0.00035616,7]
[392515172,1761599454518,-500.0,0.00035616,7]
[392515173,1761599454527,-514.18186517,0.00035616,7]
[392515174,1761599454536,-500.0,0.00035616,7]
[392515175,1761599454545,-500.0,0.00035616,7]
[392515176,1761599454554,-509.97512414,0.00035616,7]
[392515177,1761599454564,-542.33675151,0.00035616,7]
[392515178,1761599454573,-500.0,0.00035616,7]
[392515179,1761599454582,-504.70383652,0.00035616,7]
[392515180,1761599454591,-572.22261172,0.00035616,7]
[392515181,1761599454600,-500.0,0.00035616,7]
[392515182,1761599454610,-250.17967953,0.00035616,7]
[392515183,1761599454619,-508.11742143,0.00035616,7]
[392515184,1761599454743,-500.0,0.00035616,7]
[392515185,1761599454753,-510.18597543,0.00035616,7]
[392515186,1761599454764,-500.0,0.00035616,7]
[392515187,1761599454772,-442.28556185,0.00035616,7]
[392515188,1761599454782,-500.0,0.00035616,7]
[392515189,1761599454791,-500.0,0.00035616,7]
[392515190,1761599454800,-589.7233586,0.00035616,7]
[392515191,1761599454809,-587.90410631,0.00035616,7]
[392515192,1761599454818,-500.0,0.00035616,7]
[392515193,1761599454827,-554.76860634,0.00035616,7]
[392515194,1761599454836,-500.0,0.00035616,7]
[392515195,1761599454845,-561.83105251,0.00035616,7]
[392515196,1761599454854,-500.0,0.00035616,7]
[392515197,1761599454863,-500.0,0.00035616,7]
[392515198,1761599454872,-500.0,0.00035616,7]
[392515199,1761599454881,-503.98801855,0.00035616,7]
[392515200,1761599454891,-151.0,0.00035616,31]
[392515201,1761599454900,-506.43906307,0.00035616,7]
[392515202,1761599454909,-584.32,0.00035616,2]
[392515203,1761599454918,-500.0,0.00035616,7]
[392515204,1761599454927,-151.0,0.00035616,31]
[392515205,1761599454936,-636.22658432,0.00035616,7]
[392515206,1761599454946,-3296.25,0.00035616,7]
[392515207,1761599454955,-507.88177784,0.00035616,7]
[392515208,1761599454964,-500.0,0.00035616,7]
[392515209,1761599454974,-500.0,0.00035616,7]
[392515210,1761599454983,-500.0,0.00035616,7]
[392515211,1761599454992,-500.0,0.00035616,7]
[392515212,1761599455002,-500.0,0.00035616,7]
[392515213,1761599455011,-519.7550719,0.00035616,7]
[392515214,1761599455020,-151.0,0.00035616,31]
[392515215,1761599455029,-500.0,0.00035616,7]
[392515216,1761599455038,-151.0,0.00035616,31]
[392515217,1761599455047,-500.0,0.00035616,7]
[392515218,1761599455056,-500.0,0.00035616,7]
[392515219,1761599455067,-500.0,0.00035616,7]
[392515220,1761599455077,-500.0,0.00035616,7]
[392515221,1761599455088,-514.90442214,0.00035616,7]
[392515222,1761599455098,-500.0,0.00035616,7]
[392515223,1761599455108,-536.11274722,0.00035616,7]
[392515224,1761599455120,-500.0,0.00035616,7]
[392515225,1761599455131,-528.90545364,0.00035616,7]
[392515226,1761599455141,-515.71127129,0.00035616,7]
[392515227,1761599455152,-500.0,0.00035616,7]
[392515228,1761599455161,-500.0,0.00035616,7]
[392515229,1761599455170,-500.0,0.00035616,7]
[392515230,1761599455180,-500.0,0.00035616,7]
[392515231,1761599455191,-511.19407093,0.00035616,7]
[392515232,1761599455200,-500.0,0.00035616,7]
[392515233,1761599455210,-500.0,0.00035616,7]
[392515234,1761599455220,-518.75059014,0.00035616,7]
[392515235,1761599455230,-151.0,0.00035616,31]
[392515236,1761599455240,-495.67906624,0.00035616,7]
[392515237,1761599455250,-3275.98,0.00035616,7]